[Event "Titled Tuesday Blitz December 27 Early 2022"]
[White "Feng, Eric"]
[Black "McCoy, Owen"]
[WhiteFideId "30952590"]
[BlackFideId "30924502"]
[WhiteElo "1951"]
[BlackElo "2085"]
[Result "1-0"]
[Round "07"]
[TimeControl "180+2"]
[Date "2022.12.27"]
[WhiteClock "0:00:12"]
[BlackClock "0:00:02"]

1. d4 {[%clk 0:02:33]}  Nf6 {[%clk 0:02:59]} 2. c4 {[%clk 0:02:32]}  g6 {[%clk 0:03:00]} 3. Nf3 {[%clk 0:02:32]}  Bg7 {[%clk 0:03:01]} 4. g3 {[%clk 0:02:29]}  O-O {[%clk 0:03:01]} 5. Bg2 {[%clk 0:02:29]}  d6 {[%clk 0:03:01]} 6. O-O {[%clk 0:02:27]}  Nbd7 {[%clk 0:03:02]} 7. Nc3 {[%clk 0:02:27]}  e5 {[%clk 0:03:02]} 8. d5 {[%clk 0:02:28]}  a5 {[%clk 0:02:51]} 9. e4 {[%clk 0:02:27]}  Nc5 {[%clk 0:02:48]} 10. Qc2 {[%clk 0:02:26]}  Nfd7 {[%clk 0:02:29]} 11. Be3 {[%clk 0:02:08]}  Nb6 {[%clk 0:02:19]} 12. Nd2 {[%clk 0:01:54]}  f5 {[%clk 0:02:18]} 13. f4 {[%clk 0:01:38]}  exf4 {[%clk 0:02:09]} 14. Bxf4 {[%clk 0:01:36]}  fxe4 {[%clk 0:01:58]} 15. Ncxe4 {[%clk 0:01:31]}  Bf5 {[%clk 0:01:58]} 16. Rae1 {[%clk 0:01:30]}  Qd7 {[%clk 0:01:54]} 17. Nxc5 {[%clk 0:01:23]}  Bxc2 {[%clk 0:01:22]} 18. Nxd7 {[%clk 0:01:22]}  Nxd7 {[%clk 0:01:21]} 19. Re7 {[%clk 0:01:21]}  Rad8 {[%clk 0:01:07]} 20. Bh3 {[%clk 0:01:08]}  Nc5 {[%clk 0:00:57]} 21. b3 {[%clk 0:00:51]}  c6 {[%clk 0:00:49]} 22. Rfe1 {[%clk 0:00:28]}  cxd5 {[%clk 0:00:44]} 23. cxd5 {[%clk 0:00:29]}  Nd3 {[%clk 0:00:40]} 24. Rf1 {[%clk 0:00:29]}  Bd4+ {[%clk 0:00:35]} 25. Kg2 {[%clk 0:00:27]}  b5 {[%clk 0:00:26]} 26. Be6+ {[%clk 0:00:26]}  Kh8 {[%clk 0:00:26]} 27. Bh6 {[%clk 0:00:25]}  Rxf1 {[%clk 0:00:23]} 28. Kxf1 {[%clk 0:00:25]}  Nc5 {[%clk 0:00:18]} 29. Nf3 {[%clk 0:00:24]}  Bd3+ {[%clk 0:00:17]} 30. Kg2 {[%clk 0:00:21]}  Be4 {[%clk 0:00:17]} 31. Bf7 {[%clk 0:00:17]}  Bf6 {[%clk 0:00:14]} 32. Rc7 {[%clk 0:00:15]}  Nd3 {[%clk 0:00:12]} 33. Be6 {[%clk 0:00:07]}  Ne1+ {[%clk 0:00:12]} 34. Kf2 {[%clk 0:00:07]}  Nxf3 {[%clk 0:00:11]} 35. Ke3 {[%clk 0:00:07]}  Bxd5 {[%clk 0:00:08]} 36. Bxd5 {[%clk 0:00:07]}  Ne5 {[%clk 0:00:08]} 37. h4 {[%clk 0:00:06]}  Ng4+ {[%clk 0:00:08]} 38. Kf4 {[%clk 0:00:06]}  Nxh6 {[%clk 0:00:09]} 39. g4 {[%clk 0:00:07]}  Ng8 {[%clk 0:00:08]} 40. g5 {[%clk 0:00:07]}  Be5+ {[%clk 0:00:08]} 41. Ke4 {[%clk 0:00:07]}  Re8 {[%clk 0:00:07]} 42. Kd3 {[%clk 0:00:07]}  b4 {[%clk 0:00:04]} 43. Ra7 {[%clk 0:00:07]}  Bg7 {[%clk 0:00:04]} 44. Rxa5 {[%clk 0:00:07]}  Ne7 {[%clk 0:00:03]} 45. Be6 {[%clk 0:00:07]}  Nc6 {[%clk 0:00:03]} 46. Ra6 {[%clk 0:00:08]}  Ne5+ {[%clk 0:00:04]} 47. Ke4 {[%clk 0:00:08]}  Rd8 {[%clk 0:00:04]} 48. Kd5 {[%clk 0:00:08]}  h6 {[%clk 0:00:04]} 49. Rb6 {[%clk 0:00:08]}  hxg5 {[%clk 0:00:04]} 50. hxg5 {[%clk 0:00:09]}  Nf3 {[%clk 0:00:04]} 51. Rxb4 {[%clk 0:00:08]}  Nxg5 {[%clk 0:00:05]} 52. Rh4+ {[%clk 0:00:09]}  Bh6 {[%clk 0:00:04]} 53. Rxh6+ {[%clk 0:00:10]}  Kg7 {[%clk 0:00:05]} 54. Rh2 {[%clk 0:00:10]}  Nf3 {[%clk 0:00:05]} 55. Rf2 {[%clk 0:00:10]}  Ne5 {[%clk 0:00:06]} 56. a4 {[%clk 0:00:10]}  Nd3 {[%clk 0:00:06]} 57. Rf3 {[%clk 0:00:08]}  Nb4+ {[%clk 0:00:05]} 58. Kc4 {[%clk 0:00:08]}  Nc6 {[%clk 0:00:05]} 59. Rf7+ {[%clk 0:00:08]}  Kh6 {[%clk 0:00:05]} 60. Rc7 {[%clk 0:00:08]}  Ne5+ {[%clk 0:00:05]} 61. Kd4 {[%clk 0:00:09]}  g5 {[%clk 0:00:04]} 62. Bf5 {[%clk 0:00:08]}  g4 {[%clk 0:00:04]} 63. Ke4 {[%clk 0:00:07]}  Kg5 {[%clk 0:00:04]} 64. Rg7+ {[%clk 0:00:07]}  Kf6 {[%clk 0:00:05]} 65. Rh7 {[%clk 0:00:07]}  d5+ {[%clk 0:00:05]} 66. Kf4 {[%clk 0:00:07]}  g3 {[%clk 0:00:04]} 67. Rh6+ {[%clk 0:00:06]}  Kg7 {[%clk 0:00:05]} 68. Rh3 {[%clk 0:00:06]}  Nf7 {[%clk 0:00:04]} 69. Rxg3+ {[%clk 0:00:07]}  Kf6 {[%clk 0:00:05]} 70. Rg6+ {[%clk 0:00:06]}  Ke7 {[%clk 0:00:05]} 71. Re6+ {[%clk 0:00:07]}  Kf8 {[%clk 0:00:06]} 72. Rf6 {[%clk 0:00:07]}  Ke7 {[%clk 0:00:06]} 73. Re6+ {[%clk 0:00:07]}  Kf8 {[%clk 0:00:06]} 74. Ke3 {[%clk 0:00:08]}  Rb8 {[%clk 0:00:07]} 75. Bc2 {[%clk 0:00:08]}  Nd8 {[%clk 0:00:07]} 76. Rd6 {[%clk 0:00:08]}  Ke7 {[%clk 0:00:07]} 77. Rxd5 {[%clk 0:00:08]}  Nc6 {[%clk 0:00:07]} 78. Rc5 {[%clk 0:00:06]}  Kd6 {[%clk 0:00:07]} 79. Rc4 {[%clk 0:00:06]}  Rh8 {[%clk 0:00:07]} 80. Kd2 {[%clk 0:00:06]}  Rh2+ {[%clk 0:00:07]} 81. Kc3 {[%clk 0:00:07]}  Rh3+ {[%clk 0:00:08]} 82. Kb2 {[%clk 0:00:08]}  Ne5 {[%clk 0:00:07]} 83. Rd4+ {[%clk 0:00:08]}  Kc5 {[%clk 0:00:07]} 84. Re4 {[%clk 0:00:08]}  Nc6 {[%clk 0:00:08]} 85. Rc4+ {[%clk 0:00:08]}  Kb6 {[%clk 0:00:08]} 86. Be4 {[%clk 0:00:09]}  Ne5 {[%clk 0:00:08]} 87. Rb4+ {[%clk 0:00:09]}  Kc5 {[%clk 0:00:08]} 88. Rb5+ {[%clk 0:00:09]}  Kd6 {[%clk 0:00:09]} 89. Rd5+ {[%clk 0:00:09]}  Ke6 {[%clk 0:00:09]} 90. Rb5 {[%clk 0:00:10]}  Rh2+ {[%clk 0:00:08]} 91. Ka3 {[%clk 0:00:10]}  Kd6 {[%clk 0:00:04]} 92. a5 {[%clk 0:00:10]}  Nd7 {[%clk 0:00:04]} 93. Rd5+ {[%clk 0:00:10]}  Kc7 {[%clk 0:00:05]} 94. Bf5 {[%clk 0:00:10]}  Nb8 {[%clk 0:00:04]} 95. Rb5 {[%clk 0:00:10]}  Nc6 {[%clk 0:00:04]} 96. Be4 {[%clk 0:00:10]}  Nd4 {[%clk 0:00:04]} 97. Rb4 {[%clk 0:00:10]}  Ne2 {[%clk 0:00:03]} 98. Rb7+ {[%clk 0:00:09]}  Kc8 {[%clk 0:00:03]} 99. a6 {[%clk 0:00:10]}  Nc1 {[%clk 0:00:03]} 100. a7 {[%clk 0:00:09]}  Ra2+ {[%clk 0:00:03]} 101. Kb4 {[%clk 0:00:09]}  Ne2 {[%clk 0:00:04]} 102. Rb8+ {[%clk 0:00:09]}  Kc7 {[%clk 0:00:04]} 103. a8=Q {[%clk 0:00:10]}  Rxa8 {[%clk 0:00:04]} 104. Rxa8 {[%clk 0:00:11]}  Nd4 {[%clk 0:00:04]} 105. Kc5 {[%clk 0:00:12]}  Ne6+ {[%clk 0:00:05]} 106. Kd5 {[%clk 0:00:12]}  Nf4+ {[%clk 0:00:05]} 107. Ke5 {[%clk 0:00:12]}  Ne2 {[%clk 0:00:05]} 108. b4 {[%clk 0:00:13]}  Kb6 {[%clk 0:00:05]} 109. Rb8+ {[%clk 0:00:13]}  Ka6 {[%clk 0:00:05]} 110. Kd5 {[%clk 0:00:12]}  Nc3+ {[%clk 0:00:05]} 111. Kc6 {[%clk 0:00:12]}  Ka7 {[%clk 0:00:01]} 112. Kc7 {[%clk 0:00:13]}  Nb5+ {[%clk 0:00:01]} 113. Rxb5 {[%clk 0:00:12]}  Ka6 {[%clk 0:00:02]} 114. Ra5# {[%clk 0:00:12]} 1-0


[Site "https://www.chess.com"]

[Event "Titled Tuesday Blitz December 27 Early 2022"]
[White "Fernandez Siles, Luis"]
[Black "Derjabin, Ilja"]
[WhiteFideId "2209420"]
[BlackFideId "14104768"]
[WhiteElo "2218"]
[BlackElo "2333"]
[Result "0-1"]
[Round "07"]
[TimeControl "180+2"]
[Date "2022.12.27"]
[WhiteClock "0:00:04"]
[BlackClock "0:00:09"]

1. d4 {[%clk 0:02:47]}  Nf6 {[%clk 0:02:53]} 2. c4 {[%clk 0:02:47]}  c5 {[%clk 0:02:50]} 3. d5 {[%clk 0:02:46]}  b5 {[%clk 0:02:50]} 4. Qc2 {[%clk 0:02:46]}  Na6 {[%clk 0:02:45]} 5. e4 {[%clk 0:02:11]}  Nb4 {[%clk 0:02:41]} 6. Qe2 {[%clk 0:02:11]}  bxc4 {[%clk 0:02:41]} 7. Qxc4 {[%clk 0:01:57]}  Ba6 {[%clk 0:02:38]} 8. Qb3 {[%clk 0:01:49]}  Qa5 {[%clk 0:02:20]} 9. Bd2 {[%clk 0:01:43]}  Nxe4 {[%clk 0:02:17]} 10. Bxb4 {[%clk 0:01:42]}  cxb4 {[%clk 0:02:16]} 11. Bxa6 {[%clk 0:01:38]}  Qxa6 {[%clk 0:02:16]} 12. Qxb4 {[%clk 0:01:31]}  Nd6 {[%clk 0:01:52]} 13. Nc3 {[%clk 0:01:25]}  g6 {[%clk 0:01:39]} 14. Nge2 {[%clk 0:01:18]}  Bg7 {[%clk 0:01:39]} 15. O-O {[%clk 0:01:16]}  O-O {[%clk 0:01:37]} 16. Rab1 {[%clk 0:00:58]}  Rab8 {[%clk 0:01:34]} 17. Qa4 {[%clk 0:00:54]}  Qb7 {[%clk 0:01:16]} 18. Rfe1 {[%clk 0:00:48]}  Rfc8 {[%clk 0:01:13]} 19. h4 {[%clk 0:00:43]}  Rc4 {[%clk 0:01:11]} 20. Qd1 {[%clk 0:00:41]}  Rxh4 {[%clk 0:01:11]} 21. Ng3 {[%clk 0:00:28]}  Bxc3 {[%clk 0:00:57]} 22. bxc3 {[%clk 0:00:25]}  Qxb1 {[%clk 0:00:58]} 23. Qxb1 {[%clk 0:00:26]}  Rxb1 {[%clk 0:00:58]} 24. Rxb1 {[%clk 0:00:27]}  Ra4 {[%clk 0:00:58]} 25. Rb2 {[%clk 0:00:18]}  Kg7 {[%clk 0:00:55]} 26. f3 {[%clk 0:00:18]}  Rc4 {[%clk 0:00:54]} 27. Rb3 {[%clk 0:00:18]}  Rc5 {[%clk 0:00:53]} 28. Ra3 {[%clk 0:00:18]}  a5 {[%clk 0:00:50]} 29. Ne4 {[%clk 0:00:13]}  Nxe4 {[%clk 0:00:48]} 30. fxe4 {[%clk 0:00:13]}  Kf6 {[%clk 0:00:49]} 31. Kf2 {[%clk 0:00:12]}  Ke5 {[%clk 0:00:48]} 32. Ke3 {[%clk 0:00:12]}  d6 {[%clk 0:00:46]} 33. Kd3 {[%clk 0:00:12]}  f5 {[%clk 0:00:45]} 34. exf5 {[%clk 0:00:12]}  Rxd5+ {[%clk 0:00:45]} 35. Ke3 {[%clk 0:00:12]}  gxf5 {[%clk 0:00:45]} 36. Ra4 {[%clk 0:00:12]}  Rc5 {[%clk 0:00:45]} 37. Kd3 {[%clk 0:00:11]}  Rb5 {[%clk 0:00:39]} 38. Kc4 {[%clk 0:00:10]}  Rb2 {[%clk 0:00:39]} 39. Rxa5+ {[%clk 0:00:10]}  Kf6 {[%clk 0:00:39]} 40. Ra8 {[%clk 0:00:08]}  Rxg2 {[%clk 0:00:38]} 41. a4 {[%clk 0:00:09]}  Ke5 {[%clk 0:00:31]} 42. a5 {[%clk 0:00:08]}  Ra2 {[%clk 0:00:31]} 43. Kb3 {[%clk 0:00:07]}  Ra1 {[%clk 0:00:28]} 44. Kb2 {[%clk 0:00:07]}  Rg1 {[%clk 0:00:09]} 45. a6 {[%clk 0:00:04]}  e6 {[%clk 0:00:09]} 0-1


[Site "https://www.chess.com"]

[Event "Titled Tuesday Blitz December 27 Early 2022"]
[White "Ferreira, Vitor Hugo Vieira"]
[Black "Martynov, Pavel"]
[WhiteFideId "2119765"]
[BlackFideId "4101260"]
[WhiteElo "2128"]
[BlackElo "2414"]
[Result "1-0"]
[Round "07"]
[TimeControl "180+2"]
[Date "2022.12.27"]
[WhiteClock "0:00:53"]
[BlackClock "0:00:02"]

1. e4 {[%clk 0:02:54]}  c5 {[%clk 0:02:54]} 2. Nf3 {[%clk 0:02:54]}  e6 {[%clk 0:02:52]} 3. g3 {[%clk 0:02:53]}  d5 {[%clk 0:02:50]} 4. exd5 {[%clk 0:02:53]}  exd5 {[%clk 0:02:47]} 5. Bg2 {[%clk 0:02:53]}  Nf6 {[%clk 0:02:45]} 6. O-O {[%clk 0:02:53]}  Be7 {[%clk 0:02:42]} 7. d4 {[%clk 0:02:52]}  O-O {[%clk 0:02:36]} 8. dxc5 {[%clk 0:02:52]}  Bxc5 {[%clk 0:02:34]} 9. Nc3 {[%clk 0:02:49]}  h6 {[%clk 0:02:29]} 10. Bf4 {[%clk 0:02:47]}  Nc6 {[%clk 0:02:23]} 11. Qd2 {[%clk 0:02:47]}  Be6 {[%clk 0:02:16]} 12. Rad1 {[%clk 0:02:45]}  Re8 {[%clk 0:02:00]} 13. Nb5 {[%clk 0:02:22]}  Rc8 {[%clk 0:01:55]} 14. c3 {[%clk 0:02:19]}  Ne4 {[%clk 0:01:51]} 15. Qc1 {[%clk 0:02:18]}  Qb6 {[%clk 0:01:49]} 16. Nbd4 {[%clk 0:02:18]}  Bg4 {[%clk 0:01:45]} 17. Be3 {[%clk 0:02:14]}  Nxd4 {[%clk 0:01:25]} 18. Bxd4 {[%clk 0:02:13]}  Bxd4 {[%clk 0:01:20]} 19. Rxd4 {[%clk 0:02:13]}  Bxf3 {[%clk 0:01:19]} 20. Bxf3 {[%clk 0:02:13]}  Ng5 {[%clk 0:00:36]} 21. Bxd5 {[%clk 0:02:11]}  Qxd4 {[%clk 0:00:35]} 22. cxd4 {[%clk 0:02:08]}  Rxc1 {[%clk 0:00:34]} 23. Rxc1 {[%clk 0:02:08]}  Rd8 {[%clk 0:00:34]} 24. Bb3 {[%clk 0:01:58]}  Rxd4 {[%clk 0:00:30]} 25. Rc7 {[%clk 0:01:55]}  a5 {[%clk 0:00:19]} 26. h4 {[%clk 0:01:47]}  a4 {[%clk 0:00:15]} 27. Bc2 {[%clk 0:01:38]}  Nf3+ {[%clk 0:00:14]} 28. Kh1 {[%clk 0:01:32]}  g6 {[%clk 0:00:09]} 29. Rc3 {[%clk 0:01:19]}  Rd2 {[%clk 0:00:07]} 30. Be4 {[%clk 0:01:03]}  Nd4 {[%clk 0:00:03]} 31. Kg2 {[%clk 0:00:53]}  Rxb2 {[%clk 0:00:02]} 32. Rc4 {[%clk 0:00:53]} 1-0


[Site "https://www.chess.com"]

[Event "Titled Tuesday Blitz December 27 Early 2022"]
[White "Gatterer, Florian"]
[Black "Van Essen, Mark"]
[WhiteFideId "811688"]
[BlackFideId "1012819"]
[WhiteElo "2170"]
[BlackElo "2194"]
[Result "1/2-1/2"]
[Round "07"]
[TimeControl "180+2"]
[Date "2022.12.27"]
[WhiteClock "0:01:41"]
[BlackClock "0:01:48"]

1. d4 {[%clk 0:03:00]}  Nf6 {[%clk 0:02:59]} 2. Nf3 {[%clk 0:03:00]}  g6 {[%clk 0:02:58]} 3. Nc3 {[%clk 0:02:56]}  d5 {[%clk 0:02:56]} 4. Bf4 {[%clk 0:02:56]}  Bg7 {[%clk 0:02:54]} 5. e3 {[%clk 0:02:56]}  O-O {[%clk 0:02:52]} 6. Nb5 {[%clk 0:02:56]}  Na6 {[%clk 0:02:48]} 7. Nc3 {[%clk 0:02:56]}  c6 {[%clk 0:02:44]} 8. Bxa6 {[%clk 0:02:53]}  bxa6 {[%clk 0:02:45]} 9. Be5 {[%clk 0:02:53]}  Bf5 {[%clk 0:02:25]} 10. O-O {[%clk 0:02:49]}  Qd7 {[%clk 0:02:19]} 11. Na4 {[%clk 0:02:44]}  Qb7 {[%clk 0:02:18]} 12. b3 {[%clk 0:02:38]}  Rfe8 {[%clk 0:02:12]} 13. Nc5 {[%clk 0:02:37]}  Qc8 {[%clk 0:02:07]} 14. h3 {[%clk 0:02:32]}  Ne4 {[%clk 0:02:04]} 15. Bxg7 {[%clk 0:02:09]}  Kxg7 {[%clk 0:02:05]} 16. Nxe4 {[%clk 0:02:05]}  Bxe4 {[%clk 0:02:06]} 17. Nd2 {[%clk 0:02:05]}  Bf5 {[%clk 0:02:00]} 18. g4 {[%clk 0:02:04]}  Bd7 {[%clk 0:01:58]} 19. f4 {[%clk 0:02:01]}  h5 {[%clk 0:01:48]} 20. f5 {[%clk 0:01:45]}  hxg4 {[%clk 0:01:48]} 21. hxg4 {[%clk 0:01:45]}  Rh8 {[%clk 0:01:48]} 22. Kg2 {[%clk 0:01:41]} 1/2-1/2


[Site "https://www.chess.com"]

[Event "Titled Tuesday Blitz December 27 Early 2022"]
[White "Goltsev, Dmitry"]
[Black "Hirneise, Jens"]
[WhiteFideId "24176710"]
[BlackFideId "24614734"]
[WhiteElo "2269"]
[BlackElo "2277"]
[Result "1-0"]
[Round "07"]
[TimeControl "180+2"]
[Date "2022.12.27"]
[WhiteClock "0:00:31"]
[BlackClock "0:00:09"]

1. e4 {[%clk 0:02:59]}  c6 {[%clk 0:02:58]} 2. d4 {[%clk 0:02:58]}  g6 {[%clk 0:02:57]} 3. h4 {[%clk 0:02:57]}  h5 {[%clk 0:02:53]} 4. Nc3 {[%clk 0:02:57]}  Bg7 {[%clk 0:02:53]} 5. Nf3 {[%clk 0:02:58]}  d5 {[%clk 0:02:53]} 6. e5 {[%clk 0:02:58]}  Bg4 {[%clk 0:02:53]} 7. Bg5 {[%clk 0:02:58]}  Nh6 {[%clk 0:02:52]} 8. Be2 {[%clk 0:02:58]}  Nf5 {[%clk 0:02:52]} 9. Nh2 {[%clk 0:02:55]}  Bxe2 {[%clk 0:02:51]} 10. Nxe2 {[%clk 0:02:56]}  Qb6 {[%clk 0:02:51]} 11. b3 {[%clk 0:02:54]}  f6 {[%clk 0:02:38]} 12. exf6 {[%clk 0:02:50]}  exf6 {[%clk 0:02:38]} 13. Bc1 {[%clk 0:02:48]}  Nxh4 {[%clk 0:02:32]} 14. Nf4 {[%clk 0:02:44]}  g5 {[%clk 0:02:28]} 15. Nxh5 {[%clk 0:02:44]}  Kf7 {[%clk 0:02:15]} 16. Nxg7 {[%clk 0:02:42]}  Kxg7 {[%clk 0:02:13]} 17. O-O {[%clk 0:02:42]}  Nf5 {[%clk 0:02:07]} 18. c3 {[%clk 0:02:37]}  Qc7 {[%clk 0:02:05]} 19. Ng4 {[%clk 0:02:31]}  Nd7 {[%clk 0:02:02]} 20. Bd2 {[%clk 0:02:29]}  Rh4 {[%clk 0:01:54]} 21. Qf3 {[%clk 0:02:28]}  Rah8 {[%clk 0:01:51]} 22. g3 {[%clk 0:02:27]}  Rh3 {[%clk 0:01:18]} 23. Rfe1 {[%clk 0:02:00]}  Nxg3 {[%clk 0:01:08]} 24. Re7+ {[%clk 0:01:59]}  Kf8 {[%clk 0:00:56]} 25. Rxd7 {[%clk 0:01:46]}  Ne2+ {[%clk 0:00:35]} 26. Kf1 {[%clk 0:01:32]}  Qxd7 {[%clk 0:00:24]} 27. Qxf6+ {[%clk 0:01:30]}  Qf7 {[%clk 0:00:24]} 28. Qxf7+ {[%clk 0:01:26]}  Kxf7 {[%clk 0:00:25]} 29. Kxe2 {[%clk 0:01:27]}  Rh1 {[%clk 0:00:23]} 30. Rxh1 {[%clk 0:01:21]}  Rxh1 {[%clk 0:00:22]} 31. Bxg5 {[%clk 0:01:19]}  Ke6 {[%clk 0:00:23]} 32. Bd2 {[%clk 0:01:13]}  Ra1 {[%clk 0:00:23]} 33. a4 {[%clk 0:01:09]}  Rb1 {[%clk 0:00:23]} 34. b4 {[%clk 0:01:09]}  b6 {[%clk 0:00:24]} 35. Ne3 {[%clk 0:01:08]}  Ra1 {[%clk 0:00:24]} 36. f4 {[%clk 0:01:05]}  Rxa4 {[%clk 0:00:24]} 37. f5+ {[%clk 0:01:05]}  Kf6 {[%clk 0:00:23]} 38. Be1 {[%clk 0:01:03]}  Ra2+ {[%clk 0:00:23]} 39. Kf3 {[%clk 0:01:01]}  a5 {[%clk 0:00:24]} 40. Bh4+ {[%clk 0:00:53]}  Kf7 {[%clk 0:00:23]} 41. bxa5 {[%clk 0:00:50]}  bxa5 {[%clk 0:00:24]} 42. Ng4 {[%clk 0:00:50]}  a4 {[%clk 0:00:21]} 43. Ne5+ {[%clk 0:00:51]}  Kf8 {[%clk 0:00:20]} 44. Bg5 {[%clk 0:00:37]}  a3 {[%clk 0:00:18]} 45. f6 {[%clk 0:00:35]}  Rh2 {[%clk 0:00:16]} 46. Bc1 {[%clk 0:00:34]}  a2 {[%clk 0:00:16]} 47. Ba3+ {[%clk 0:00:34]}  Kg8 {[%clk 0:00:08]} 48. f7+ {[%clk 0:00:32]}  Kh7 {[%clk 0:00:08]} 49. f8=Q {[%clk 0:00:31]}  a1=Q {[%clk 0:00:09]} 50. Qf7+ {[%clk 0:00:31]}  Kh8 {[%clk 0:00:09]} 51. Ng6# {[%clk 0:00:31]} 1-0


[Site "https://www.chess.com"]

[Event "Titled Tuesday Blitz December 27 Early 2022"]
[White "Grigoriants, Sergey"]
[Black "Bachmann, Axel"]
[WhiteFideId "4130804"]
[BlackFideId "3700488"]
[WhiteElo "2562"]
[BlackElo "2604"]
[Result "1-0"]
[Round "07"]
[TimeControl "180+2"]
[Date "2022.12.27"]
[WhiteClock "0:00:04"]
[BlackClock "0:00:03"]

1. e4 {[%clk 0:03:00]}  g6 {[%clk 0:02:58]} 2. d4 {[%clk 0:03:00]}  Bg7 {[%clk 0:02:52]} 3. Nf3 {[%clk 0:03:00]}  c6 {[%clk 0:02:52]} 4. Bd3 {[%clk 0:03:00]}  d6 {[%clk 0:02:49]} 5. h3 {[%clk 0:02:59]}  Nf6 {[%clk 0:02:49]} 6. O-O {[%clk 0:02:59]}  O-O {[%clk 0:02:49]} 7. Re1 {[%clk 0:02:59]}  Qc7 {[%clk 0:02:45]} 8. e5 {[%clk 0:02:55]}  dxe5 {[%clk 0:02:44]} 9. dxe5 {[%clk 0:02:55]}  Nd5 {[%clk 0:02:41]} 10. a3 {[%clk 0:02:44]}  Nd7 {[%clk 0:02:30]} 11. c4 {[%clk 0:02:39]}  N5b6 {[%clk 0:02:29]} 12. Qe2 {[%clk 0:02:39]}  Nc5 {[%clk 0:02:03]} 13. Bc2 {[%clk 0:02:39]}  Be6 {[%clk 0:01:55]} 14. b3 {[%clk 0:02:36]}  a5 {[%clk 0:01:41]} 15. a4 {[%clk 0:02:31]}  Nbd7 {[%clk 0:01:18]} 16. Ba3 {[%clk 0:02:13]}  Rfe8 {[%clk 0:01:18]} 17. Nbd2 {[%clk 0:02:12]}  Rad8 {[%clk 0:01:10]} 18. Rad1 {[%clk 0:02:11]}  Qb6 {[%clk 0:01:05]} 19. Ne4 {[%clk 0:01:19]}  Nxe4 {[%clk 0:00:56]} 20. Qxe4 {[%clk 0:01:19]}  Bf5 {[%clk 0:00:56]} 21. Qe2 {[%clk 0:01:19]}  Bxc2 {[%clk 0:00:55]} 22. Qxc2 {[%clk 0:01:20]}  Nc5 {[%clk 0:00:55]} 23. Bxc5 {[%clk 0:01:10]}  Qxc5 {[%clk 0:00:56]} 24. e6 {[%clk 0:01:10]}  f5 {[%clk 0:00:41]} 25. Ng5 {[%clk 0:00:53]}  b5 {[%clk 0:00:35]} 26. Rd7 {[%clk 0:00:46]}  Rb8 {[%clk 0:00:32]} 27. Re2 {[%clk 0:00:27]}  bxa4 {[%clk 0:00:29]} 28. bxa4 {[%clk 0:00:27]}  Rb4 {[%clk 0:00:24]} 29. Red2 {[%clk 0:00:15]}  Bf6 {[%clk 0:00:21]} 30. Nf3 {[%clk 0:00:09]}  Rxc4 {[%clk 0:00:19]} 31. Qd3 {[%clk 0:00:10]}  Rxa4 {[%clk 0:00:05]} 32. Rd8 {[%clk 0:00:10]}  Rxd8 {[%clk 0:00:05]} 33. Qxd8+ {[%clk 0:00:11]}  Kg7 {[%clk 0:00:06]} 34. Qe8 {[%clk 0:00:11]}  Re4 {[%clk 0:00:02]} 35. Qf7+ {[%clk 0:00:08]}  Kh6 {[%clk 0:00:03]} 36. Qf8+ {[%clk 0:00:04]}  Bg7 {[%clk 0:00:03]} 37. Qb8 {[%clk 0:00:04]} 1-0


[Site "https://www.chess.com"]

[Event "Titled Tuesday Blitz December 27 Early 2022"]
[White "Guha, Eshan"]
[Black "Ezat, Mohamed"]
[WhiteFideId "30958628"]
[BlackFideId "10600906"]
[WhiteElo "2071"]
[BlackElo "2402"]
[Result "0-1"]
[Round "07"]
[TimeControl "180+2"]
[Date "2022.12.27"]
[WhiteClock "0:01:24"]
[BlackClock "0:01:05"]

1. b3 {[%clk 0:03:00]}  e5 {[%clk 0:02:21]} 2. Bb2 {[%clk 0:03:01]}  Nc6 {[%clk 0:02:21]} 3. e3 {[%clk 0:03:02]}  Nf6 {[%clk 0:02:21]} 4. Bb5 {[%clk 0:03:02]}  Bd6 {[%clk 0:02:21]} 5. Na3 {[%clk 0:03:01]}  O-O {[%clk 0:02:20]} 6. Nc4 {[%clk 0:03:01]}  Qe7 {[%clk 0:02:20]} 7. Nxd6 {[%clk 0:03:00]}  Qxd6 {[%clk 0:02:20]} 8. Nf3 {[%clk 0:02:58]}  Re8 {[%clk 0:02:20]} 9. O-O {[%clk 0:02:57]}  e4 {[%clk 0:02:19]} 10. Nd4 {[%clk 0:02:55]}  Nxd4 {[%clk 0:02:16]} 11. Bxd4 {[%clk 0:02:55]}  c6 {[%clk 0:02:15]} 12. Be2 {[%clk 0:02:55]}  Qe7 {[%clk 0:02:12]} 13. f3 {[%clk 0:02:54]}  d5 {[%clk 0:02:11]} 14. a4 {[%clk 0:02:51]}  exf3 {[%clk 0:02:08]} 15. Bxf3 {[%clk 0:02:51]}  Ne4 {[%clk 0:02:07]} 16. d3 {[%clk 0:02:50]}  Nd6 {[%clk 0:02:06]} 17. Qd2 {[%clk 0:02:44]}  Nf5 {[%clk 0:02:04]} 18. Rae1 {[%clk 0:02:39]}  Nxd4 {[%clk 0:02:00]} 19. exd4 {[%clk 0:02:40]}  Be6 {[%clk 0:02:00]} 20. Bg4 {[%clk 0:02:37]}  Qd6 {[%clk 0:02:00]} 21. Bxe6 {[%clk 0:02:37]}  Rxe6 {[%clk 0:01:59]} 22. Rxe6 {[%clk 0:02:30]}  Qxe6 {[%clk 0:01:59]} 23. Re1 {[%clk 0:02:29]}  Qf6 {[%clk 0:01:57]} 24. Qe3 {[%clk 0:02:27]}  g6 {[%clk 0:01:56]} 25. Qe5 {[%clk 0:02:27]}  Qxe5 {[%clk 0:01:54]} 26. dxe5 {[%clk 0:02:25]}  Re8 {[%clk 0:01:50]} 27. d4 {[%clk 0:02:25]}  f6 {[%clk 0:01:50]} 28. Kf2 {[%clk 0:02:18]}  fxe5 {[%clk 0:01:50]} 29. dxe5 {[%clk 0:02:12]}  Kf7 {[%clk 0:01:50]} 30. Kf3 {[%clk 0:02:07]}  Ke6 {[%clk 0:01:48]} 31. Ke3 {[%clk 0:02:07]}  Rf8 {[%clk 0:01:40]} 32. c4 {[%clk 0:01:49]}  dxc4 {[%clk 0:01:35]} 33. bxc4 {[%clk 0:01:49]}  Kxe5 {[%clk 0:01:35]} 34. Kd3+ {[%clk 0:01:48]}  Kd6 {[%clk 0:01:36]} 35. Rb1 {[%clk 0:01:44]}  b6 {[%clk 0:01:35]} 36. a5 {[%clk 0:01:40]}  Kc5 {[%clk 0:01:35]} 37. axb6 {[%clk 0:01:39]}  axb6 {[%clk 0:01:35]} 38. Rb2 {[%clk 0:01:31]}  Rf4 {[%clk 0:01:32]} 39. Rc2 {[%clk 0:01:31]}  Rd4+ {[%clk 0:01:32]} 40. Ke3 {[%clk 0:01:29]}  Rxc4 {[%clk 0:01:32]} 41. Rf2 {[%clk 0:01:28]}  b5 {[%clk 0:01:30]} 42. Rf7 {[%clk 0:01:28]}  Rh4 {[%clk 0:01:24]} 43. h3 {[%clk 0:01:27]}  b4 {[%clk 0:01:24]} 44. Kd3 {[%clk 0:01:27]}  Rd4+ {[%clk 0:01:21]} 45. Kc2 {[%clk 0:01:27]}  Re4 {[%clk 0:01:20]} 46. Kd3 {[%clk 0:01:27]}  Rd4+ {[%clk 0:01:11]} 47. Kc2 {[%clk 0:01:27]}  Kc4 {[%clk 0:01:11]} 48. Rxh7 {[%clk 0:01:26]}  b3+ {[%clk 0:01:10]} 49. Kb2 {[%clk 0:01:24]}  Rd2+ {[%clk 0:01:09]} 50. Kc1 {[%clk 0:01:24]}  Kc3 {[%clk 0:01:05]} 0-1


[Site "https://www.chess.com"]